Workbook

Sheet price
A1: PU Zone | B1: DL Zone | C1: Zone Combo | D1: Minimum | E1: Maximum | F1: w/o SC | G1: Shipping Cost | H1: Internalid | I1: Externalid | J1: Surcharge
A2: CA | B2: AL | C2: =A2&B2 -> CAAL | D2: 0 | E2: 100 | F2: 190 | G2: =F2+J2 -> 190 | J2: 0
A3: CA | B3: AL | C3: CAAL | D3: 101 | E3: 200 | F3: 210 | G3: 210 | J3: 0
A4: CA | B4: AL | C4: CAAL | D4: 201 | E4: 250 | F4: 228 | G4: 228 | J4: 0
A5: CA | B5: AL | C5: CAAL | D5: 251 | E5: 300 | F5: 247 | G5: 247 | J5: 0
A6: CA | B6: AL | C6: CAAL | D6: 301 | E6: 350 | F6: 295 | G6: 295 | J6: 0
A7: CA | B7: AL | C7: CAAL | D7: 351 | E7: 400 | F7: 325 | G7: 325 | J7: 0
A8: CA | B8: AL | C8: CAAL | D8: 401 | E8: 450 | F8: 375 | G8: 375 | J8: 0
A9: CA | B9: AL | C9: CAAL | D9: 451 | E9: 500 | F9: 425 | G9: 425 | J9: 0
A10: CA | B10: AL | C10: CAAL | D10: 501 | E10: 550 | F10: 450 | G10: 450 | J10: 0
A11: CA | B11: AL | C11: CAAL | D11: 551 | E11: 600 | F11: 475 | G11: 475 | J11: 0
A12: CA | B12: AL | C12: CAAL | D12: 601 | E12: 650 | F12: 500 | G12: 500 | J12: 0
A13: CA | B13: AL | C13: CAAL | D13: 651 | E13: 700 | F13: 575 | G13: 575 | J13: 0
A14: CA | B14: AL | C14: CAAL | D14: 701 | E14: 750 | F14: 600 | G14: 600 | J14: 0
A15: CA | B15: AL | C15: CAAL | D15: 751 | E15: 800 | F15: 675 | G15: 675 | J15: 0
A16: CA | B16: AL | C16: CAAL | D16: 801 | E16: 850 | F16: 700 | G16: 700 | J16: 0
A17: CA | B17: AL | C17: CAAL | D17: 851 | E17: 900 | F17: 750 | G17: 750 | J17: 0
A18: CA | B18: AL | C18: CAAL | D18: 901 | E18: 950 | F18: 775 | G18: 775 | J18: 0
A19: CA | B19: AL | C19: CAAL | D19: 951 | E19: 1000 | F19: 825 | G19: 825 | J19: 0
A20: CA | B20: AL | C20: CAAL | D20: 1001 | E20: 9999 | F20: 0 | G20: 0 | J20: 0
A21: CA | B21: ALO | C21: CAALO | D21: 0 | E21: 100 | F21: 190 | G21: 315 | J21: 125
A22: CA | B22: ALO | C22: CAALO | D22: 101 | E22: 200 | F22: 210 | G22: 335 | J22: 125
A23: CA | B23: ALO | C23: CAALO | D23: 201 | E23: 250 | F23: 228 | G23: 353 | J23: 125
A24: CA | B24: ALO | C24: CAALO | D24: 251 | E24: 300 | F24: 247 | G24: 372 | J24: 125
A25: CA | B25: ALO | C25: CAALO | D25: 301 | E25: 350 | F25: 295 | G25: 420 | J25: 125
A26: CA | B26: ALO | C26: CAALO | D26: 351 | E26: 400 | F26: 325 | G26: 450 | J26: 125
A27: CA | B27: ALO | C27: CAALO | D27: 401 | E27: 450 | F27: 375 | G27: 500 | J27: 125
A28: CA | B28: ALO | C28: CAALO | D28: 451 | E28: 500 | F28: 425 | G28: 550 | J28: 125
A29: CA | B29: ALO | C29: CAALO | D29: 501 | E29: 550 | F29: 450 | G29: 575 | J29: 125
A30: CA | B30: ALO | C30: CAALO | D30: 551 | E30: 600 | F30: 475 | G30: 600 | J30: 125
A31: CA | B31: ALO | C31: CAALO | D31: 601 | E31: 650 | F31: 500 | G31: 625 | J31: 125
A32: CA | B32: ALO | C32: CAALO | D32: 651 | E32: 700 | F32: 575 | G32: 700 | J32: 125
A33: CA | B33: ALO | C33: CAALO | D33: 701 | E33: 750 | F33: 600 | G33: 725 | J33: 125
A34: CA | B34: ALO | C34: CAALO | D34: 751 | E34: 800 | F34: 675 | G34: 800 | J34: 125
A35: CA | B35: ALO | C35: CAALO | D35: 801 | E35: 850 | F35: 700 | G35: 825 | J35: 125
A36: CA | B36: ALO | C36: CAALO | D36: 851 | E36: 900 | F36: 750 | G36: 875 | J36: 125
A37: CA | B37: ALO | C37: CAALO | D37: 901 | E37: 950 | F37: 775 | G37: 900 | J37: 125
A38: CA | B38: ALO | C38: CAALO | D38: 951 | E38: 1000 | F38: 825 | G38: 950 | J38: 125
A39: CA | B39: ALO | C39: CAALO | D39: 1001 | E39: 9999 | F39: 0 | G39: 0 | J39: 0
A40: CA | B40: AZ | C40: CAAZ | D40: 0 | E40: 100 | F40: 170 | G40: 170 | J40: 0
A41: CA | B41: AZ | C41: CAAZ | D41: 101 | E41: 200 | F41: 190 | G41: 190 | J41: 0
A42: CA | B42: AZ | C42: CAAZ | D42: 201 | E42: 250 | F42: 208 | G42: 208 | J42: 0
A43: CA | B43: AZ | C43: CAAZ | D43: 251 | E43: 300 | F43: 227 | G43: 227 | J43: 0
A44: CA | B44: AZ | C44: CAAZ | D44: 301 | E44: 350 | F44: 288 | G44: 288 | J44: 0
A45: CA | B45: AZ | C45: CAAZ | D45: 351 | E45: 400 | F45: 320 | G45: 320 | J45: 0
A46: CA | B46: AZ | C46: CAAZ | D46: 401 | E46: 450 | F46: 345 | G46: 345 | J46: 0
A47: CA | B47: AZ | C47: CAAZ | D47: 451 | E47: 500 | F47: 371 | G47: 371 | J47: 0
A48: CA | B48: AZ | C48: CAAZ | D48: 501 | E48: 550 | F48: 400 | G48: 400 | J48: 0
A49: CA | B49: AZ | C49: CAAZ | D49: 551 | E49: 600 | F49: 432 | G49: 432 | J49: 0
A50: CA | B50: AZ | C50: CAAZ | D50: 601 | E50: 650 | F50: 466 | G50: 466 | J50: 0
A51: CA | B51: AZ | C51: CAAZ | D51: 651 | E51: 700 | F51: 503 | G51: 503 | J51: 0
A52: CA | B52: AZ | C52: CAAZ | D52: 701 | E52: 750 | F52: 544 | G52: 544 | J52: 0
A53: CA | B53: AZ | C53: CAAZ | D53: 751 | E53: 800 | F53: 588 | G53: 588 | J53: 0
A54: CA | B54: AZ | C54: CAAZ | D54: 801 | E54: 850 | F54: 636 | G54: 636 | J54: 0
A55: CA | B55: AZ | C55: CAAZ | D55: 851 | E55: 900 | F55: 688 | G55: 688 | J55: 0
A56: CA | B56: AZ | C56: CAAZ | D56: 901 | E56: 950 | F56: 744 | G56: 744 | J56: 0
A57: CA | B57: AZ | C57: CAAZ | D57: 951 | E57: 1000 | F57: 806 | G57: 806 | J57: 0
A58: CA | B58: AZ | C58: CAAZ | D58: 1001 | E58: 9999 | F58: 0 | G58: 0 | J58: 0
A59: CA | B59: AZO | C59: CAAZO | D59: 0 | E59: 100 | F59: 170 | G59: 220 | J59: 50
A60: CA | B60: AZO | C60: CAAZO | D60: 101 | E60: 200 | F60: 190 | G60: 240 | J60: 50
A61: CA | B61: AZO | C61: CAAZO | D61: 201 | E61: 250 | F61: 208 | G61: 258 | J61: 50
A62: CA | B62: AZO | C62: CAAZO | D62: 251 | E62: 300 | F62: 227 | G62: 277 | J62: 50
A63: CA | B63: AZO | C63: CAAZO | D63: 301 | E63: 350 | F63: 288 | G63: 338 | J63: 50
A64: CA | B64: AZO | C64: CAAZO | D64: 351 | E64: 400 | F64: 320 | G64: 370 | J64: 50
A65: CA | B65: AZO | C65: CAAZO | D65: 401 | E65: 450 | F65: 345 | G65: 395 | J65: 50
A66: CA | B66: AZO | C66: =A66&B66 -> CAAZO | D66: 451 | E66: 500 | F66: 371 | G66: =F66+J66 -> 421 | J66: 50
A67: CA | B67: AZO | C67: CAAZO | D67: 501 | E67: 550 | F67: 400 | G67: 450 | J67: 50
A68: CA | B68: AZO | C68: CAAZO | D68: 551 | E68: 600 | F68: 432 | G68: 482 | J68: 50
A69: CA | B69: AZO | C69: CAAZO | D69: 601 | E69: 650 | F69: 466 | G69: 516 | J69: 50
A70: CA | B70: AZO | C70: CAAZO | D70: 651 | E70: 700 | F70: 503 | G70: 553 | J70: 50
A71: CA | B71: AZO | C71: CAAZO | D71: 701 | E71: 750 | F71: 544 | G71: 594 | J71: 50
A72: CA | B72: AZO | C72: CAAZO | D72: 751 | E72: 800 | F72: 588 | G72: 638 | J72: 50
A73: CA | B73: AZO | C73: CAAZO | D73: 801 | E73: 850 | F73: 636 | G73: 686 | J73: 50
A74: CA | B74: AZO | C74: CAAZO | D74: 851 | E74: 900 | F74: 688 | G74: 738 | J74: 50
A75: CA | B75: AZO | C75: CAAZO | D75: 901 | E75: 950 | F75: 744 | G75: 794 | J75: 50
A76: CA | B76: AZO | C76: CAAZO | D76: 951 | E76: 1000 | F76: 806 | G76: 856 | J76: 50
A77: CA | B77: AZO | C77: CAAZO | D77: 1001 | E77: 9999 | F77: 0 | G77: 0 | J77: 0
A78: CA | B78: AZX | C78: CAAZX | D78: 0 | E78: 100 | F78: 170 | G78: 295 | J78: 125
A79: CA | B79: AZX | C79: CAAZX | D79: 101 | E79: 200 | F79: 190 | G79: 315 | J79: 125
A80: CA | B80: AZX | C80: CAAZX | D80: 201 | E80: 250 | F80: 208 | G80: 333 | J80: 125
A81: CA | B81: AZX | C81: CAAZX | D81: 251 | E81: 300 | F81: 227 | G81: 352 | J81: 125
A82: CA | B82: AZX | C82: CAAZX | D82: 301 | E82: 350 | F82: 288 | G82: 413 | J82: 125
A83: CA | B83: AZX | C83: CAAZX | D83: 351 | E83: 400 | F83: 320 | G83: 445 | J83: 125
A84: CA | B84: AZX | C84: CAAZX | D84: 401 | E84: 450 | F84: 345 | G84: 470 | J84: 125
A85: CA | B85: AZX | C85: CAAZX | D85: 451 | E85: 500 | F85: 371 | G85: 496 | J85: 125
A86: CA | B86: AZX | C86: CAAZX | D86: 501 | E86: 550 | F86: 400 | G86: 525 | J86: 125
A87: CA | B87: AZX | C87: CAAZX | D87: 551 | E87: 600 | F87: 432 | G87: 557 | J87: 125
A88: CA | B88: AZX | C88: CAAZX | D88: 601 | E88: 650 | F88: 466 | G88: 591 | J88: 125
A89: CA | B89: AZX | C89: CAAZX | D89: 651 | E89: 700 | F89: 503 | G89: 628 | J89: 125
A90: CA | B90: AZX | C90: CAAZX | D90: 701 | E90: 750 | F90: 544 | G90: 669 | J90: 125
A91: CA | B91: AZX | C91: CAAZX | D91: 751 | E91: 800 | F91: 588 | G91: 713 | J91: 125
A92: CA | B92: AZX | C92: CAAZX | D92: 801 | E92: 850 | F92: 636 | G92: 761 | J92: 125
A93: CA | B93: AZX | C93: CAAZX | D93: 851 | E93: 900 | F93: 688 | G93: 813 | J93: 125
A94: CA | B94: AZX | C94: CAAZX | D94: 901 | E94: 950 | F94: 744 | G94: 869 | J94: 125
A95: CA | B95: AZX | C95: CAAZX | D95: 951 | E95: 1000 | F95: 806 | G95: 931 | J95: 125
A96: CA | B96: AZX | C96: CAAZX | D96: 1001 | E96: 9999 | F96: 0 | G96: 0 | J96: 0
A97: CA | B97: CA | C97: CACA | D97: 0 | E97: 100 | F97: 110 | G97: 110 | J97: 0
A98: CA | B98: CA | C98: CACA | D98: 101 | E98: 200 | F98: 110 | G98: 110 | J98: 0
A99: CA | B99: CA | C99: CACA | D99: 201 | E99: 250 | F99: 122 | G99: 122 | J99: 0
A100: CA | B100: CA | C100: CACA | D100: 251 | E100: 300 | F100: 135 | G100: 135 | J100: 0
A101: CA | B101: CA | C101: CACA | D101: 301 | E101: 350 | F101: 150 | G101: 150 | J101: 0
A102: CA | B102: CA | C102: CACA | D102: 351 | E102: 400 | F102: 166 | G102: 166 | J102: 0
A103: CA | B103: CA | C103: CACA | D103: 401 | E103: 450 | F103: 184 | G103: 184 | J103: 0
A104: CA | B104: CA | C104: CACA | D104: 451 | E104: 500 | F104: 205 | G104: 205 | J104: 0
A105: CA | B105: CA | C105: CACA | D105: 501 | E105: 550 | F105: 227 | G105: 227 | J105: 0
A106: CA | B106: CA | C106: CACA | D106: 551 | E106: 600 | F106: 253 | G106: 253 | J106: 0
A107: CA | B107: CA | C107: CACA | D107: 601 | E107: 650 | F107: 281 | G107: 281 | J107: 0
A108: CA | B108: CA | C108: CACA | D108: 651 | E108: 700 | F108: 313 | G108: 313 | J108: 0
A109: CA | B109: CA | C109: CACA | D109: 701 | E109: 750 | F109: 348 | G109: 348 | J109: 0
A110: CA | B110: CA | C110: CACA | D110: 751 | E110: 800 | F110: 388 | G110: 388 | J110: 0
A111: CA | B111: CA | C111: CACA | D111: 801 | E111: 850 | F111: 432 | G111: 432 | J111: 0
A112: CA | B112: CA | C112: CACA | D112: 851 | E112: 900 | F112: 481 | G112: 481 | J112: 0
A113: CA | B113: CA | C113: CACA | D113: 901 | E113: 950 | F113: 536 | G113: 536 | J113: 0
A114: CA | B114: CA | C114: CACA | D114: 951 | E114: 1000 | F114: 598 | G114: 598 | J114: 0
A115: CA | B115: CA | C115: CACA | D115: 1001 | E115: 9999 | F115: 0 | G115: 0 | J115: 0
A116: CA | B116: CAO | C116: CACAO | D116: 0 | E116: 100 | F116: 110 | G116: 160 | J116: 50
A117: CA | B117: CAO | C117: CACAO | D117: 101 | E117: 200 | F117: 110 | G117: 160 | J117: 50
A118: CA | B118: CAO | C118: CACAO | D118: 201 | E118: 250 | F118: 122 | G118: 172 | J118: 50
A119: CA | B119: CAO | C119: CACAO | D119: 251 | E119: 300 | F119: 135 | G119: 185 | J119: 50
A120: CA | B120: CAO | C120: CACAO | D120: 301 | E120: 350 | F120: 150 | G120: 200 | J120: 50
A121: CA | B121: CAO | C121: CACAO | D121: 351 | E121: 400 | F121: 166 | G121: 216 | J121: 50
A122: CA | B122: CAO | C122: CACAO | D122: 401 | E122: 450 | F122: 184 | G122: 234 | J122: 50
A123: CA | B123: CAO | C123: CACAO | D123: 451 | E123: 500 | F123: 205 | G123: 255 | J123: 50
A124: CA | B124: CAO | C124: CACAO | D124: 501 | E124: 550 | F124: 227 | G124: 277 | J124: 50
A125: CA | B125: CAO | C125: CACAO | D125: 551 | E125: 600 | F125: 253 | G125: 303 | J125: 50
A126: CA | B126: CAO | C126: CACAO | D126: 601 | E126: 650 | F126: 281 | G126: 331 | J126: 50
A127: CA | B127: CAO | C127: CACAO | D127: 651 | E127: 700 | F127: 313 | G127: 363 | J127: 50
A128: CA | B128: CAO | C128: CACAO | D128: 701 | E128: 750 | F128: 348 | G128: 398 | J128: 50
A129: CA | B129: CAO | C129: CACAO | D129: 751 | E129: 800 | F129: 388 | G129: 438 | J129: 50
A130: CA | B130: CAO | C130: =A130&B130 -> CACAO | D130: 801 | E130: 850 | F130: 432 | G130: =F130+J130 -> 482 | J130: 50
A131: CA | B131: CAO | C131: CACAO | D131: 851 | E131: 900 | F131: 481 | G131: 531 | J131: 50
A132: CA | B132: CAO | C132: CACAO | D132: 901 | E132: 950 | F132: 536 | G132: 586 | J132: 50
A133: CA | B133: CAO | C133: CACAO | D133: 951 | E133: 1000 | F133: 598 | G133: 648 | J133: 50
A134: CA | B134: CAO | C134: CACAO | D134: 1001 | E134: 9999 | F134: 0 | G134: 0 | J134: 0
A135: CA | B135: CHA | C135: CACHA | D135: 0 | E135: 100 | F135: 190 | G135: 190 | J135: 0
A136: CA | B136: CHA | C136: CACHA | D136: 101 | E136: 200 | F136: 210 | G136: 210 | J136: 0
A137: CA | B137: CHA | C137: CACHA | D137: 201 | E137: 250 | F137: 228 | G137: 228 | J137: 0
A138: CA | B138: CHA | C138: CACHA | D138: 251 | E138: 300 | F138: 247 | G138: 247 | J138: 0
A139: CA | B139: CHA | C139: CACHA | D139: 301 | E139: 350 | F139: 295 | G139: 295 | J139: 0
A140: CA | B140: CHA | C140: CACHA | D140: 351 | E140: 400 | F140: 325 | G140: 325 | J140: 0
A141: CA | B141: CHA | C141: CACHA | D141: 401 | E141: 450 | F141: 375 | G141: 375 | J141: 0
A142: CA | B142: CHA | C142: CACHA | D142: 451 | E142: 500 | F142: 425 | G142: 425 | J142: 0
A143: CA | B143: CHA | C143: CACHA | D143: 501 | E143: 550 | F143: 450 | G143: 450 | J143: 0
A144: CA | B144: CHA | C144: CACHA | D144: 551 | E144: 600 | F144: 475 | G144: 475 | J144: 0
A145: CA | B145: CHA | C145: CACHA | D145: 601 | E145: 650 | F145: 500 | G145: 500 | J145: 0
A146: CA | B146: CHA | C146: CACHA | D146: 651 | E146: 700 | F146: 575 | G146: 575 | J146: 0
A147: CA | B147: CHA | C147: CACHA | D147: 701 | E147: 750 | F147: 600 | G147: 600 | J147: 0
A148: CA | B148: CHA | C148: CACHA | D148: 751 | E148: 800 | F148: 675 | G148: 675 | J148: 0
A149: CA | B149: CHA | C149: CACHA | D149: 801 | E149: 850 | F149: 700 | G149: 700 | J149: 0
A150: CA | B150: CHA | C150: CACHA | D150: 851 | E150: 900 | F150: 750 | G150: 750 | J150: 0
A151: CA | B151: CHA | C151: CACHA | D151: 901 | E151: 950 | F151: 775 | G151: 775 | J151: 0
A152: CA | B152: CHA | C152: CACHA | D152: 951 | E152: 1000 | F152: 825 | G152: 825 | J152: 0
A153: CA | B153: CHA | C153: CACHA | D153: 1001 | E153: 9999 | F153: 0 | G153: 0 | J153: 0
A154: CA | B154: CHO | C154: CACHO | D154: 0 | E154: 100 | F154: 190 | G154: 240 | J154: 50
A155: CA | B155: CHO | C155: CACHO | D155: 101 | E155: 200 | F155: 210 | G155: 260 | J155: 50
A156: CA | B156: CHO | C156: CACHO | D156: 201 | E156: 250 | F156: 228 | G156: 278 | J156: 50
A157: CA | B157: CHO | C157: CACHO | D157: 251 | E157: 300 | F157: 247 | G157: 297 | J157: 50
A158: CA | B158: CHO | C158: CACHO | D158: 301 | E158: 350 | F158: 295 | G158: 345 | J158: 50
A159: CA | B159: CHO | C159: CACHO | D159: 351 | E159: 400 | F159: 325 | G159: 375 | J159: 50
A160: CA | B160: CHO | C160: CACHO | D160: 401 | E160: 450 | F160: 375 | G160: 425 | J160: 50
A161: CA | B161: CHO | C161: CACHO | D161: 451 | E161: 500 | F161: 425 | G161: 475 | J161: 50
A162: CA | B162: CHO | C162: CACHO | D162: 501 | E162: 550 | F162: 450 | G162: 500 | J162: 50
A163: CA | B163: CHO | C163: CACHO | D163: 551 | E163: 600 | F163: 475 | G163: 525 | J163: 50
A164: CA | B164: CHO | C164: CACHO | D164: 601 | E164: 650 | F164: 500 | G164: 550 | J164: 50
A165: CA | B165: CHO | C165: CACHO | D165: 651 | E165: 700 | F165: 575 | G165: 625 | J165: 50
A166: CA | B166: CHO | C166: CACHO | D166: 701 | E166: 750 | F166: 600 | G166: 650 | J166: 50
A167: CA | B167: CHO | C167: CACHO | D167: 751 | E167: 800 | F167: 675 | G167: 725 | J167: 50
A168: CA | B168: CHO | C168: CACHO | D168: 801 | E168: 850 | F168: 700 | G168: 750 | J168: 50
A169: CA | B169: CHO | C169: CACHO | D169: 851 | E169: 900 | F169: 750 | G169: 800 | J169: 50
A170: CA | B170: CHO | C170: CACHO | D170: 901 | E170: 950 | F170: 775 | G170: 825 | J170: 50
A171: CA | B171: CHO | C171: CACHO | D171: 951 | E171: 1000 | F171: 825 | G171: 875 | J171: 50
A172: CA | B172: CHO | C172: CACHO | D172: 1001 | E172: 9999 | F172: 0 | G172: 0 | J172: 0
A173: CA | B173: CNO | C173: CACNO | D173: 0 | E173: 100 | F173: 110 | G173: 210 | J173: 100
A174: CA | B174: CNO | C174: CACNO | D174: 101 | E174: 200 | F174: 110 | G174: 210 | J174: 100
A175: CA | B175: CNO | C175: CACNO | D175: 201 | E175: 250 | F175: 122 | G175: 222 | J175: 100
A176: CA | B176: CNO | C176: CACNO | D176: 251 | E176: 300 | F176: 135 | G176: 235 | J176: 100
A177: CA | B177: CNO | C177: CACNO | D177: 301 | E177: 350 | F177: 150 | G177: 250 | J177: 100
A178: CA | B178: CNO | C178: CACNO | D178: 351 | E178: 400 | F178: 166 | G178: 266 | J178: 100
A179: CA | B179: CNO | C179: CACNO | D179: 401 | E179: 450 | F179: 184 | G179: 284 | J179: 100
A180: CA | B180: CNO | C180: CACNO | D180: 451 | E180: 500 | F180: 205 | G180: 305 | J180: 100
A181: CA | B181: CNO | C181: CACNO | D181: 501 | E181: 550 | F181: 227 | G181: 327 | J181: 100
A182: CA | B182: CNO | C182: CACNO | D182: 551 | E182: 600 | F182: 253 | G182: 353 | J182: 100
A183: CA | B183: CNO | C183: CACNO | D183: 601 | E183: 650 | F183: 281 | G183: 381 | J183: 100
A184: CA | B184: CNO | C184: CACNO | D184: 651 | E184: 700 | F184: 313 | G184: 413 | J184: 100
A185: CA | B185: CNO | C185: CACNO | D185: 701 | E185: 750 | F185: 348 | G185: 448 | J185: 100
A186: CA | B186: CNO | C186: CACNO | D186: 751 | E186: 800 | F186: 388 | G186: 488 | J186: 100
A187: CA | B187: CNO | C187: CACNO | D187: 801 | E187: 850 | F187: 432 | G187: 532 | J187: 100
A188: CA | B188: CNO | C188: CACNO | D188: 851 | E188: 900 | F188: 481 | G188: 581 | J188: 100
A189: CA | B189: CNO | C189: CACNO | D189: 901 | E189: 950 | F189: 536 | G189: 636 | J189: 100
A190: CA | B190: CNO | C190: CACNO | D190: 951 | E190: 1000 | F190: 598 | G190: 698 | J190: 100
A191: CA | B191: CNO | C191: CACNO | D191: 1001 | E191: 9999 | F191: 0 | G191: 0 | J191: 0
A192: CA | B192: CNX | C192: CACNX | D192: 0 | E192: 100 | F192: 110 | G192: 185 | J192: 75
A193: CA | B193: CNX | C193: CACNX | D193: 101 | E193: 200 | F193: 110 | G193: 185 | J193: 75
A194: CA | B194: CNX | C194: =A194&B194 -> CACNX | D194: 201 | E194: 250 | F194: 122 | G194: =F194+J194 -> 197 | J194: 75
A195: CA | B195: CNX | C195: CACNX | D195: 251 | E195: 300 | F195: 135 | G195: 210 | J195: 75
A196: CA | B196: CNX | C196: CACNX | D196: 301 | E196: 350 | F196: 150 | G196: 225 | J196: 75
A197: CA | B197: CNX | C197: CACNX | D197: 351 | E197: 400 | F197: 166 | G197: 241 | J197: 75
A198: CA | B198: CNX | C198: CACNX | D198: 401 | E198: 450 | F198: 184 | G198: 259 | J198: 75
A199: CA | B199: CNX | C199: CACNX | D199: 451 | E199: 500 | F199: 205 | G199: 280 | J199: 75
A200: CA | B200: CNX | C200: CACNX | D200: 501 | E200: 550 | F200: 227 | G200: 302 | J200: 75
... 4095 more rows

Sheet postcode_table
A1: Zip Code | B1: Zone
A2: 00501 | B2: NY
A3: 00544 | B3: NY
A4: 01001 | B4: MA
A5: 01002 | B5: MA
A6: 01003 | B6: MA
A7: 01004 | B7: MA
A8: 01005 | B8: MA
A9: 01007 | B9: MA
A10: 01008 | B10: MA
A11: 01009 | B11: MA
A12: 01010 | B12: MA
A13: 01011 | B13: MA
A14: 01012 | B14: MAO
A15: 01013 | B15: MA
A16: 01014 | B16: MA
A17: 01020 | B17: MA
A18: 01021 | B18: MA
A19: 01022 | B19: MA
A20: 01026 | B20: MAO
A21: 01027 | B21: MA
A22: 01028 | B22: MA
A23: 01029 | B23: MAO
A24: 01030 | B24: MA
A25: 01031 | B25: MA
A26: 01032 | B26: MAO
A27: 01033 | B27: MA
A28: 01034 | B28: MA
A29: 01035 | B29: MA
A30: 01036 | B30: MA
A31: 01037 | B31: MA
A32: 01038 | B32: MA
A33: 01039 | B33: MA
A34: 01040 | B34: MA
A35: 01041 | B35: MA
A36: 01050 | B36: MAO
A37: 01053 | B37: MA
A38: 01054 | B38: MAO
A39: 01056 | B39: MA
A40: 01057 | B40: MA
A41: 01059 | B41: MA
A42: 01060 | B42: MA
A43: 01061 | B43: MA
A44: 01062 | B44: MA
A45: 01063 | B45: MA
A46: 01066 | B46: MA
A47: 01068 | B47: MA
A48: 01069 | B48: MA
A49: 01070 | B49: MAO
A50: 01071 | B50: MA
A51: 01072 | B51: MAO
A52: 01073 | B52: MA
A53: 01074 | B53: MA
A54: 01075 | B54: MA
A55: 01077 | B55: MA
A56: 01079 | B56: MA
A57: 01080 | B57: MA
A58: 01081 | B58: MA
A59: 01082 | B59: MA
A60: 01083 | B60: MA
A61: 01084 | B61: MAO
A62: 01085 | B62: MA
A63: 01086 | B63: MA
A64: 01088 | B64: MA
A65: 01089 | B65: MA
A66: 01090 | B66: MA
A67: 01092 | B67: MA
A68: 01093 | B68: MAO
A69: 01094 | B69: MA
A70: 01095 | B70: MA
A71: 01096 | B71: MA
A72: 01097 | B72: MA
A73: 01098 | B73: MA
A74: 01101 | B74: MA
A75: 01102 | B75: MA
A76: 01103 | B76: MA
A77: 01104 | B77: MA
A78: 01105 | B78: MA
A79: 01106 | B79: MA
A80: 01107 | B80: MA
A81: 01108 | B81: MA
A82: 01109 | B82: MA
A83: 01111 | B83: MA
A84: 01115 | B84: MA
A85: 01116 | B85: MA
A86: 01118 | B86: MA
A87: 01119 | B87: MA
A88: 01128 | B88: MA
A89: 01129 | B89: MA
A90: 01138 | B90: MA
A91: 01139 | B91: MA
A92: 01144 | B92: MA
A93: 01151 | B93: MA
A94: 01152 | B94: MA
A95: 01199 | B95: MA
A96: 01201 | B96: MAO
A97: 01202 | B97: MAO
A98: 01203 | B98: MAO
A99: 01220 | B99: MAO
A100: 01222 | B100: MAO
A101: 01223 | B101: MAO
A102: 01224 | B102: MAO
A103: 01225 | B103: MAO
A104: 01226 | B104: MAO
A105: 01227 | B105: MAO
A106: 01229 | B106: MAO
A107: 01230 | B107: MAO
A108: 01235 | B108: MAO
A109: 01236 | B109: MAO
A110: 01237 | B110: MAO
A111: 01238 | B111: MAO
A112: 01240 | B112: MAO
A113: 01242 | B113: MAO
A114: 01243 | B114: MAO
A115: 01244 | B115: MAO
A116: 01245 | B116: MAO
A117: 01247 | B117: MAO
A118: 01252 | B118: MAO
A119: 01253 | B119: MAO
A120: 01254 | B120: MAO
A121: 01255 | B121: MAO
A122: 01256 | B122: MAO
A123: 01257 | B123: MAO
A124: 01258 | B124: MAO
A125: 01259 | B125: MAO
A126: 01260 | B126: MAO
A127: 01262 | B127: MAO
A128: 01263 | B128: MAO
A129: 01264 | B129: MAO
A130: 01266 | B130: MAO
A131: 01267 | B131: MAO
A132: 01270 | B132: MAO
A133: 01301 | B133: MAO
A134: 01302 | B134: MAO
A135: 01330 | B135: MAO
A136: 01331 | B136: MA
A137: 01337 | B137: MAO
A138: 01338 | B138: MAO
A139: 01339 | B139: MAO
A140: 01340 | B140: MAO
A141: 01341 | B141: MAO
A142: 01342 | B142: MAO
A143: 01343 | B143: MAO
A144: 01344 | B144: MAO
A145: 01346 | B145: MAO
A146: 01347 | B146: MAO
A147: 01349 | B147: MAO
A148: 01350 | B148: MAO
A149: 01351 | B149: MAO
A150: 01354 | B150: MAO
A151: 01355 | B151: MAO
A152: 01360 | B152: MAO
A153: 01364 | B153: MAO
A154: 01366 | B154: MA
A155: 01367 | B155: MAO
A156: 01368 | B156: MA
A157: 01370 | B157: MAO
A158: 01373 | B158: MAO
A159: 01375 | B159: MAO
A160: 01376 | B160: MAO
A161: 01378 | B161: MAO
A162: 01379 | B162: MAO
A163: 01380 | B163: MAO
A164: 01420 | B164: MA
A165: 01430 | B165: MA
A166: 01431 | B166: MA
A167: 01432 | B167: MA
A168: 01434 | B168: MA
A169: 01436 | B169: MA
A170: 01438 | B170: MA
A171: 01440 | B171: MA
A172: 01441 | B172: MA
A173: 01450 | B173: MA
A174: 01451 | B174: MA
A175: 01452 | B175: MA
A176: 01453 | B176: MA
A177: 01460 | B177: MA
A178: 01462 | B178: MA
A179: 01463 | B179: MA
A180: 01464 | B180: MA
A181: 01467 | B181: MA
A182: 01468 | B182: MA
A183: 01469 | B183: MA
A184: 01470 | B184: MA
A185: 01471 | B185: MA
A186: 01472 | B186: MA
A187: 01473 | B187: MA
A188: 01474 | B188: MA
A189: 01475 | B189: MA
A190: 01477 | B190: MA
A191: 01501 | B191: MA
A192: 01503 | B192: MA
A193: 01504 | B193: MA
A194: 01505 | B194: MA
A195: 01506 | B195: MA
A196: 01507 | B196: MA
A197: 01508 | B197: MA
A198: 01509 | B198: MA
A199: 01510 | B199: MA
A200: 01515 | B200: MA
... 31277 more rows

Sheet Sheet3
A1: Minimum
A2: 0 | B2: 100 | C2: =B2*453.6 -> 45360
A3: 101 | B3: =B2+100 -> 200 | C3: =B3*453.6 -> 90720
A4: 201 | B4: =B3+50 -> 250 | C4: 113400
A5: 251 | B5: =B4+50 -> 300 | C5: 136080
A6: 301 | B6: 350 | C6: 158760
A7: 351 | B7: 400 | C7: 181440
A8: 401 | B8: 450 | C8: 204120
A9: 451 | B9: 500 | C9: 226800
A10: 501 | B10: 550 | C10: 249480
A11: 551 | B11: 600 | C11: 272160
A12: 601 | B12: 650 | C12: 294840
A13: 651 | B13: 700 | C13: 317520
A14: 701 | B14: 750 | C14: 340200
A15: 751 | B15: 800 | C15: 362880
A16: 801 | B16: 850 | C16: 385560
A17: 851 | B17: 900 | C17: 408240
A18: 901 | B18: 950 | C18: 430920
A19: 951 | B19: 1000 | C19: 453600
A20: 1001 | B20: 9999 | C20: 4535546.4
